fUST/lending_fUST_20250506
["ID","MTS","AMOUNT","RATE_DAILY","PERIOD"]
[360039732,1746508249006,-7059.139891,0.00017931,2]
[360039733,1746508249016,-7059.139891,0.00017931,2]
[360039734,1746508249025,-7059.139891,0.00017931,2]
[360039735,1746508249035,-7059.139891,0.00017931,2]
[360039736,1746508249044,-5287.8838306,0.00017931,2]
[360039737,1746508338467,-195.3897969,0.00017906,2]
[360039739,1746508383586,-201.9993933,0.00017807,2]
[360039740,1746508389961,-75.9892158,0.00017807,2]
[360039741,1746508389985,-79.78570565,0.00017905,2]
[360039743,1746508426778,-206.6102031,0.00017896,3]
[360039744,1746508432377,-295.40828407,0.00017806,2]
[360039745,1746508436076,-249.97639393,0.00017806,2]
[360039746,1746508436099,-302.615322,0.00017842,2]
[360039747,1746508445841,-242.76935597,0.00017842,2]
[360039748,1746508445862,-7.23064403,0.00017877,2]
[360039749,1746508447175,-250.0,0.00017896,3]
[360039751,1746508476323,-389.3467017,0.00017877,2]
[360039752,1746508477070,-148.80733224,0.00017877,2]
[360039753,1746508477097,-240.53936946,0.00017895,2]
[360039754,1746508485261,-312.73487128,0.00017895,2]
[360039755,1746508485284,-103.20106405,0.00017895,2]
[360039756,1746508491893,-149.51759541,0.00017895,2]
[360039757,1746508491916,-45.19976756,0.00017895,2]
[360039758,1746508504283,-266.6972003,0.00017895,2]
[360039759,1746508511562,-500.0,0.00017894,2]
[360039760,1746508516335,-152.24720952,0.00017894,2]
[360039761,1746508533966,-158.88601231,0.00017894,2]
[360039762,1746508548392,-388.86677817,0.00017894,2]
[360039763,1746508548420,-300.0,0.00017894,2]
[360039764,1746508548443,-60.57132228,0.00017895,2]
[360039765,1746508553758,-127.53170986,0.00017895,2]
[360039766,1746508553781,-349.70294012,0.00017895,2]
[360039767,1746508562962,-150.29705988,0.00017895,2]
[360039768,1746508562993,-143.14251952,0.00017895,2]
[360039769,1746508571034,-298.98507131,0.00017895,2]
[360039770,1746508575131,-57.87240917,0.00017895,2]
[360039771,1746508575167,-108.10640004,0.00017895,2]
[360039772,1746508581938,-177.48716279,0.00017895,2]
[360039773,1746508586013,-277.9886091,0.00017895,2]
[360039774,1746508592068,-361.02270706,0.00017895,2]
[360039775,1746508595960,-252.90862775,0.00017894,2]
[360039777,1746508601143,-152.76586549,0.00016904,2]
[360039778,1746508604286,-312.40075328,0.00016904,2]
[360039779,1746508610325,-325.46405187,0.00016904,2]
[360039780,1746508613954,-644.01973571,0.00016904,2]
[360039781,1746508617672,-321.56812011,0.00016904,2]
[360039782,1746508623180,-174.53594813,0.00016903,2]
[360039783,1746508626534,-125.46405187,0.00016903,2]
[360039784,1746508626562,-49.07189626,0.00016904,2]
[360039785,1746508631550,-199.02021691,0.00016904,2]
[360039786,1746508635610,-278.69408022,0.00016904,2]
[360039787,1746508642033,-240.48020269,0.00016904,2]
[360039789,1746508642789,-22376.51507746,0.00016904,2]
[360039790,1746508645668,-209.68169623,0.00017894,2]
[360039793,1746508766687,-366.80116642,0.00017793,2]
[360039794,1746508774568,-187.21648362,0.00017793,2]
[360039795,1746508781008,-220.37099601,0.00017793,2]
[360039796,1746508781030,-29.62900399,0.00017793,2]
[360039797,1746508785588,-154.03448493,0.00017793,2]
[360039798,1746508789526,-120.43310492,0.00017793,2]
[360039802,1746508855931,-193.96551507,0.00017792,2]
[360039803,1746508860028,-343.44514132,0.00017792,2]
[360039804,1746508863157,-169.63928114,0.00017792,2]
[360039805,1746508867503,-412.95477337,0.00017792,2]
[360039806,1746508871247,-325.75794598,0.00017792,2]
[360039807,1746508875171,-156.48750878,0.00017792,2]
[360039808,1746508878525,-429.58986725,0.00017792,2]
[360039809,1746508881661,200000.0,0.0001783,10]
[360039811,1746508955241,-304.09659381,0.00017828,2]
[360039812,1746508955264,-30.20571989,0.00017831,2]
[360039813,1746508955835,-267.19797254,0.00017831,2]
[360039814,1746508955859,-67.10434116,0.00017831,2]
[360039815,1746508963023,-223.35432523,0.00017831,2]
[360039816,1746508968330,-276.64567477,0.0001783,2]
[360039817,1746508975658,-258.07187459,0.0001783,2]
[360039818,1746508978168,-157.84570364,0.0001783,2]
[360039820,1746509083386,-215.30149294,0.00017731,2]
[360039826,1746509130066,-182.45795631,0.00017719,2]
[360039827,1746509130090,-1562.55853583,0.00017731,2]
[360039828,1746509130113,-182.45795628,0.00017733,2]
[360039829,1746509130137,-72.52555158,0.00017746,2]
[360039835,1746509234659,-109.9324047,0.00017746,2]
[360039836,1746509234682,-47.91329894,0.0001776,2]
[360039837,1746509239552,-134.54465734,0.0001776,2]
[360039838,1746509239575,-29.70506483,0.00017773,2]
[360039839,1746509243982,-152.75289145,0.00017773,2]
[360039840,1746509244017,-114.19836652,0.000178,2]
[360039841,1746509248075,-36.80163348,0.000178,2]
[360039842,1746509248104,-151.0,0.000178,2]
[360039843,1746509248135,-300.0,0.00017817,2]
[360039844,1746509248164,-37.5618777,0.00017818,2]
[360039845,1746509345147,-300.0,0.00017816,2]
[360039846,1746509345167,-208.1825847,0.00017817,2]
[360039847,1746509345186,-500.0,0.00017817,2]
[360039848,1746509345206,-583.41117649,0.00017817,2]
[360039849,1746509345226,-500.0,0.00017817,2]
[360039850,1746509345247,-500.0,0.00017817,2]
[360039851,1746509345275,-1753.30398716,0.00017817,2]
[360039852,1746509345295,-114.3782405,0.00017817,2]
[360039888,1746509432522,-643.7866067,0.00016827,2]
[360039889,1746509432533,-151.0,0.000173,2]
[360039890,1746509432543,-300.0,0.00017816,2]
[360039891,1746509432552,-1200.0,0.00017816,2]
[360039892,1746509432561,-300.0,0.00017816,2]
[360039894,1746509432571,-50000.0,0.00017817,2]
[360039895,1746509432580,-172.77284798,0.00017817,2]
[360039896,1746509432589,-1753.30398716,0.00017817,2]
[360039897,1746509432599,-500.0,0.00017817,2]
[360039898,1746509432608,-500.0,0.00017817,2]
[360039899,1746509432617,-500.0,0.00017817,2]
[360039900,1746509432627,-500.0,0.00017817,2]
[360039901,1746509432637,-500.0,0.00017817,2]
[360039903,1746509432646,-500.0,0.00017817,2]
[360039905,1746509432655,-1753.30398716,0.00017817,2]
[360039906,1746509432665,-500.0,0.00017817,2]
[360039907,1746509432826,-500.0,0.00017817,2]
[360039908,1746509432836,-500.0,0.00017817,2]
[360039909,1746509432846,-1753.30398716,0.00017817,2]
[360039910,1746509432856,-500.0,0.00017817,2]
[360039911,1746509432866,-500.0,0.00017817,2]
[360039912,1746509432875,-1753.30398716,0.00017817,2]
[360039913,1746509432885,-500.0,0.00017817,2]
[360039914,1746509432894,-500.0,0.00017817,2]
[360039915,1746509432904,-650.0,0.00017817,2]
[360039916,1746509432913,-1753.30398716,0.00017817,2]
[360039917,1746509432923,-500.0,0.00017817,2]
[360039918,1746509432932,-1753.30398716,0.00017817,2]
[360039919,1746509432942,-500.0,0.00017817,2]
[360039920,1746509432952,-1753.30398716,0.00017817,2]
[360039921,1746509432962,-500.0,0.00017817,2]
[360039922,1746509432972,-1753.30398716,0.00017817,2]
[360039923,1746509432981,-500.0,0.00017817,2]
[360039924,1746509432990,-500.0,0.00017817,2]
[360039925,1746509433000,-500.0,0.00017817,2]
[360039926,1746509433009,-500.0,0.00017817,2]
[360039927,1746509433019,-500.0,0.00017817,2]
[360039928,1746509433028,-500.0,0.00017817,2]
[360039929,1746509433038,-1753.30398716,0.00017817,2]
[360039930,1746509433050,-500.0,0.00017817,2]
[360039931,1746509433059,-500.0,0.00017817,2]
[360039932,1746509433069,-500.0,0.00017817,2]
[360039933,1746509433079,-500.0,0.00017817,2]
[360039934,1746509433090,-500.0,0.00017817,2]
[360039935,1746509433099,-1640.96367793,0.00017817,2]
[360039936,1746509433115,-112.34030923,0.00017817,2]
[360039937,1746509433128,-392.30802459,0.00017817,2]
[360039938,1746509433155,-1360.99596257,0.00017817,2]
[360039939,1746509433165,-500.0,0.00017817,2]
[360039940,1746509433175,-500.0,0.00017817,2]
[360039941,1746509433185,-1753.30398716,0.00017817,2]
[360039942,1746509433195,-500.0,0.00017817,2]
[360039943,1746509433204,-1753.30398716,0.00017817,2]
[360039944,1746509433214,-500.0,0.00017817,2]
[360039945,1746509433223,-500.0,0.00017817,2]
[360039946,1746509433233,-1753.30398716,0.00017817,2]
[360039947,1746509433243,-1753.30398716,0.00017817,2]
[360039948,1746509433253,-500.0,0.00017817,2]
[360039949,1746509433263,-1753.30398716,0.00017817,2]
[360039950,1746509433273,-500.0,0.00017817,2]
[360039951,1746509433282,-1753.30398716,0.00017817,2]
[360039952,1746509433292,-1753.30398716,0.00017817,2]
[360039953,1746509433301,-1753.30398716,0.00017817,2]
[360039954,1746509433311,-1753.30398716,0.00017817,2]
[360039955,1746509433320,-1753.30398716,0.00017817,2]
[360039956,1746509433330,-1753.30398716,0.00017817,2]
[360039957,1746509433339,-1753.30398716,0.00017817,2]
[360039958,1746509433349,-1753.30398716,0.00017817,2]
[360039959,1746509433359,-1753.30398716,0.00017817,2]
[360039960,1746509433368,-1753.30398716,0.00017817,2]
[360039961,1746509433377,-1753.30398716,0.00017817,2]
[360039962,1746509433387,-1753.30398716,0.00017817,2]
[360039963,1746509433397,-1753.30398716,0.00017817,2]
[360039964,1746509433407,-1753.30398716,0.00017817,2]
[360039965,1746509433417,-1753.30398716,0.00017817,2]
[360039966,1746509433426,-1753.30398716,0.00017817,2]
[360039967,1746509433436,-1753.30398716,0.00017817,2]
[360039968,1746509433446,-1753.30398716,0.00017817,2]
[360039969,1746509433455,-1753.30398716,0.00017817,2]
[360039970,1746509433465,-1753.30398716,0.00017817,2]
[360039971,1746509433474,-1753.30398716,0.00017817,2]
[360039972,1746509433483,-1753.30398716,0.00017817,2]
[360039973,1746509433493,-1753.30398716,0.00017817,2]
[360039974,1746509433503,-1753.30398716,0.00017817,2]
[360039975,1746509433513,-1753.30398716,0.00017817,2]
[360039976,1746509433522,-1753.30398716,0.00017817,2]
[360039977,1746509433532,-1753.30398716,0.00017817,2]
[360039978,1746509433541,-500.0,0.00017817,2]
[360039979,1746509433551,-500.0,0.00017817,2]
[360039980,1746509433560,-500.0,0.00017817,2]
[360039981,1746509433570,-500.0,0.00017817,2]
[360039982,1746509433579,-500.0,0.00017817,2]
[360039983,1746509433589,-500.0,0.00017817,2]
[360039984,1746509433599,-538.33326924,0.00017817,2]
[360039985,1746509433609,-500.0,0.00017817,2]
[360039986,1746509433618,-500.0,0.00017817,2]
[360039987,1746509433628,-500.0,0.00017817,2]
[360039988,1746509433638,-500.0,0.00017817,2]
[360039989,1746509433647,-500.0,0.00017817,2]
[360039990,1746509433656,-500.0,0.00017817,2]
[360039991,1746509433666,-500.0,0.00017817,2]
[360039992,1746509433676,-500.0,0.00017817,2]
[360039993,1746509433685,-500.0,0.00017817,2]
[360039994,1746509433695,-484.26596945,0.00017817,2]
[360040224,1746509442540,-15.73403055,0.00017817,2]
[360040226,1746509442550,-302.00955909,0.00017817,2]
[360040551,1746509446994,-197.99044091,0.00017817,2]
[360040552,1746509447004,-500.0,0.00017817,2]
[360040553,1746509447014,-500.0,0.00017817,2]
[360040554,1746509447023,-500.0,0.00017817,2]
[360040555,1746509447033,-500.0,0.00017817,2]
[360040556,1746509447045,-500.0,0.00017817,2]
[360040557,1746509447054,-500.0,0.00017817,2]
[360040558,1746509447064,-500.0,0.00017817,2]
[360040559,1746509447074,-500.0,0.00017817,2]
[360040560,1746509447083,-500.0,0.00017817,2]
[360040561,1746509447095,-1757.69145353,0.00017817,2]
[360040563,1746509561502,-262.95864491,0.00016814,2]
[360040564,1746509565729,-43.83421229,0.00016814,2]
[360040565,1746509565751,-135.40117601,0.00017618,2]
[360040566,1746509574062,-252.08878523,0.00017618,2]
[360040567,1746509579807,-68.13800643,0.00017618,2]
[360040568,1746509579831,-196.24461118,0.00017707,2]
[360040569,1746509583655,-79.0984352,0.00017707,2]
[360040570,1746509583679,-170.9015648,0.00017716,2]
[360040571,1746509587951,-233.52859716,0.00017716,2]
[360040572,1746509590621,-157.0,0.00017716,2]
[360040573,1746509598974,-346.37628914,0.00017716,2]
[360040574,1746509602194,-310.17790059,0.00017716,2]
[360040575,1746509605484,-186.44581027,0.00017716,2]
[360040576,1746509608234,-151.19736324,0.00017716,2]
[360040577,1746509608548,82.10925989,0.00016818,2]
[360040580,1746509614393,-152.0,0.00016818,2]
[360040581,1746509647489,-186.86794338,0.00016817,2]
[360040582,1746509649860,-113.13205662,0.00016817,2]
[360040583,1746509649883,-24665.89074011,0.00016818,2]
[360040584,1746509649905,-535.97720327,0.00017268,2]
[360040585,1746509654049,-37.82666609,0.00017268,2]
[360040586,1746509654944,-1619.33,0.00023,30]
[360040587,1746509654972,-1327.45279152,0.00023,32]
[360040589,1746509746124,-195.642459,0.00027397,120]
[360040590,1746509746154,-232.47253,0.000276,120]
[360040591,1746509764091,-12977.42164744,0.00025,30]
[360040598,1746509894316,-173.68154185,0.00017703,2]
[360040599,1746509914356,-300.0,0.00017,2]
[360040600,1746509917427,-157.0,0.00017,2]
[360040601,1746509920182,-156.31073415,0.00017,2]
[360040607,1746510022188,195.0,0.00021,10]
[360040611,1746510109278,-218.93292221,0.000177,2]
[360040612,1746510114656,-81.98472111,0.000177,2]
[360040613,1746510119774,-500.0,0.000177,2]
[360040614,1746510122485,-300.0,0.000177,2]
[360040617,1746510328433,-716.67699799,0.000177,2]
[360040618,1746510328455,-300.91764331,0.00017708,2]
[360040619,1746510328478,-300.91764331,0.00017716,2]
[360040620,1746510328500,-300.91764331,0.00017724,2]
[360040621,1746510328522,-300.91764331,0.00017732,2]
[360040622,1746510328544,-427.37,0.00017778,3]
[360040623,1746510328566,-605.09,0.00017778,3]
[360040624,1746510328588,-381.71,0.00017778,3]
[360040625,1746510328611,-1200.0,0.00017787,2]
[360040626,1746510328634,-300.0,0.00017787,2]
[360040627,1746510328656,-299.99999999,0.00017788,2]
[360040628,1746510328679,-500.0,0.00017788,2]
[360040629,1746510328715,-500.0,0.00017788,2]
[360040630,1746510328741,-500.0,0.00017788,2]
[360040631,1746510328774,-500.0,0.00017788,2]
[360040632,1746510328802,-500.0,0.00017788,2]
[360040633,1746510328835,-500.0,0.00017788,2]
[360040634,1746510328858,-500.0,0.00017788,2]
[360040635,1746510328890,-500.0,0.00017788,2]
[360040636,1746510328914,-500.0,0.00017788,2]
[360040637,1746510328946,-500.0,0.00017788,2]
[360040638,1746510328971,-500.0,0.00017788,2]
[360040639,1746510328995,-203.83332692,0.00017788,2]
[360040640,1746510329028,-500.0,0.00017788,2]
[360040641,1746510329059,-500.0,0.00017788,2]
[360040642,1746510329089,-500.0,0.00017788,2]
[360040643,1746510329120,-500.0,0.00017788,2]
[360040644,1746510329149,-500.0,0.00017788,2]
[360040645,1746510329179,-500.0,0.00017788,2]
[360040646,1746510329209,-500.0,0.00017788,2]
[360040647,1746510329241,-500.0,0.00017788,2]
[360040648,1746510329271,-161.64910186,0.00017788,2]
[360040651,1746510390255,-292.65,0.00017778,3]
[360040652,1746510390279,-877.99,0.00017778,3]
[360040653,1746510390301,-300.0,0.00017787,2]
[360040654,1746510390332,-144.99274306,0.00017788,2]
[360040655,1746510390361,-500.0,0.00017788,2]
[360040656,1746510390392,-500.0,0.00017788,2]
[360040657,1746510390423,-500.0,0.00017788,2]
[360040658,1746510390455,-500.0,0.00017788,2]
[360040659,1746510390487,-500.0,0.00017788,2]
[360040660,1746510390508,-372.65531829,0.00017788,2]
[360040661,1746510390529,-500.0,0.00017788,2]
[360040662,1746510390553,-500.0,0.00017788,2]
[360040663,1746510390576,-500.0,0.00017788,2]
[360040664,1746510390598,-587.46123205,0.00017788,2]
[360040665,1746510390620,-500.0,0.00017788,2]
[360040666,1746510390643,-500.0,0.00017788,2]
[360040667,1746510390665,-500.0,0.00017788,2]
[360040668,1746510390687,-500.0,0.00017788,2]
[360040669,1746510390713,-500.0,0.00017788,2]
[360040670,1746510390734,-500.0,0.00017788,2]
[360040671,1746510390759,-500.0,0.00017788,2]
[360040672,1746510390783,-500.0,0.00017788,2]
[360040673,1746510390807,-500.0,0.00017788,2]
[360040674,1746510390831,-500.0,0.00017788,2]
[360040675,1746510390854,-500.0,0.00017788,2]
[360040676,1746510390878,-500.0,0.00017788,2]
[360040677,1746510390901,-182.59148236,0.00017788,2]
[360040678,1746510390924,-500.0,0.00017788,2]
[360040679,1746510390947,-500.0,0.00017788,2]
[360040680,1746510390972,-500.0,0.00017788,2]
[360040681,1746510390995,-500.0,0.00017788,2]
[360040682,1746510391018,-500.0,0.00017788,2]
[360040683,1746510391048,-4184.01489305,0.00017788,2]
[360040684,1746510391079,-4184.01489305,0.00017788,2]
[360040685,1746510391109,-1373.62943814,0.00017788,2]
[360040696,1746510478323,-287.2,0.00017778,3]
[360040697,1746510478345,-189.24,0.00017778,3]
[360040698,1746510478366,-567.75,0.00017778,3]
[360040699,1746510478387,-300.0,0.00017787,2]
[360040700,1746510478409,-355.98148077,0.00017787,2]
[360040701,1746510478432,-500.0,0.00017787,2]
[360040702,1746510478462,-2799.82851923,0.00017787,2]
[360040706,1746510550707,-372.00727643,0.00017686,2]
[360040707,1746510556762,-243.7732074,0.00017686,2]
[360040708,1746510561031,-280.21079707,0.00017686,2]
[360040709,1746510568183,-162.61442802,0.00017686,2]
[360040710,1746510571924,-197.40290516,0.00017686,2]
[360040711,1746510578579,-71.08375917,0.00017686,2]
[360040713,1746510618342,-731.51333567,0.00016788,2]
[360040714,1746510621071,-396.99756128,0.00016788,2]
[360040715,1746510624149,-250.0,0.00016787,2]
[360040716,1746510628620,-50.0,0.00016787,2]
[360040717,1746510628643,-200.0,0.00016788,2]
[360040730,1746510631749,-23571.48910305,0.00016788,2]
[360040731,1746510631759,-152.0,0.00017744,2]
[360040732,1746510631768,-151.0,0.00017777,2]
[360040733,1746510631778,-300.0,0.00017785,2]
[360040734,1746510631788,-1200.0,0.00017785,2]
[360040735,1746510631797,-500.0,0.00017786,2]
[360040736,1746510631807,-3056.65560179,0.00017786,2]
[360040737,1746510631816,-3056.65560179,0.00017786,2]
[360040738,1746510631826,-3056.65560179,0.00017786,2]
[360040739,1746510631837,-3056.65560179,0.00017786,2]
[360040740,1746510631846,-3056.65560179,0.00017786,2]
[360040741,1746510631855,-3056.65560179,0.00017786,2]
[360040742,1746510631865,-3056.65560179,0.00017786,2]
[360040743,1746510631874,-3056.65560179,0.00017786,2]
[360040744,1746510631884,-3056.65560179,0.00017786,2]
[360040745,1746510631894,-3056.65560179,0.00017786,2]
[360040746,1746510631903,-2605.53755533,0.00017786,2]
[360040747,1746510631920,-451.11804646,0.00017786,2]
[360040748,1746510631929,-971.86402935,0.00017786,2]
[360040772,1746510637749,-2084.79157244,0.00017786,2]
[360040773,1746510637759,-3056.65560179,0.00017786,2]
[360040774,1746510637768,-3056.65560179,0.00017786,2]
[360040775,1746510637777,-3056.65560179,0.00017786,2]
[360040776,1746510637786,-3056.65560179,0.00017786,2]
[360040777,1746510637795,-3056.65560179,0.00017786,2]
[360040779,1746510637805,-3056.65560179,0.00017786,2]
[360040781,1746510637814,-3056.65560179,0.00017786,2]
[360040783,1746510637823,-3056.65560179,0.00017786,2]
[360040785,1746510637833,-3056.65560179,0.00017786,2]
[360040787,1746510637842,-3056.65560179,0.00017786,2]
[360040790,1746510637851,-3056.65560179,0.00017786,2]
[360040793,1746510637861,-3056.65560179,0.00017786,2]
[360040796,1746510637870,-3056.65560179,0.00017786,2]
[360040799,1746510637880,-3056.65560179,0.00017786,2]
[360040801,1746510637889,-3056.65560179,0.00017786,2]
[360040803,1746510637899,-3056.65560179,0.00017786,2]
[360040805,1746510637908,-3056.65560179,0.00017786,2]
[360040807,1746510637918,-3056.65560179,0.00017786,2]
[360040809,1746510637927,-631.39905359,0.00017786,2]
[360040812,1746510637936,-3056.65560179,0.00017786,2]
[360040815,1746510637946,-3056.65560179,0.00017786,2]
[360040818,1746510637955,-3056.65560179,0.00017786,2]
[360040821,1746510637965,-3056.65560179,0.00017786,2]
[360040824,1746510637975,-3056.65560179,0.00017786,2]
[360040827,1746510637985,-3056.65560179,0.00017786,2]
[360040830,1746510637995,-3056.65560179,0.00017786,2]
[360040833,1746510638005,-3056.65560179,0.00017786,2]
[360040835,1746510638015,-3056.65560179,0.00017786,2]
[360040837,1746510638025,-3056.65560179,0.00017786,2]
[360040840,1746510638034,-3056.65560179,0.00017786,2]
[360040843,1746510638044,-3056.65560179,0.00017786,2]
[360040847,1746510638056,-3297.03958775,0.00017786,2]
[360040851,1746510638072,-3297.03958775,0.00017786,2]
[360040856,1746510638087,-3297.03958775,0.00017786,2]
[360040859,1746510638099,-3297.03958775,0.00017786,2]
[360040863,1746510638112,-3297.03958775,0.00017786,2]
[360040867,1746510638126,-3297.03958775,0.00017786,2]
[360040871,1746510638140,-3297.03958775,0.00017786,2]
[360040874,1746510638154,-3297.03958775,0.00017786,2]
[360040877,1746510638167,-1564.81661007,0.00017786,2]
[360040881,1746510638195,-1732.22297768,0.00017786,2]
[360040883,1746510638208,-3297.03958775,0.00017786,2]
[360040885,1746510638221,-3297.03958775,0.00017786,2]
[360040888,1746510638232,-3297.03958775,0.00017786,2]
[360040890,1746510638247,-3297.03958775,0.00017786,2]
[360040893,1746510638260,-3297.03958775,0.00017786,2]
[360040895,1746510638272,-3135.09998631,0.00017786,2]
[360040898,1746510638292,-161.93960144,0.00017786,2]
[360040901,1746510638306,-1574.01756106,0.00017786,2]
[360041062,1746510640616,-238.63425817,0.00017786,2]
[360041314,1746510643007,-91.00563243,0.00017786,2]
[360041356,1746510645110,-161.69278599,0.00016787,2]
[360041363,1746510646636,-338.30721401,0.00016787,2]
[360041364,1746510646646,-408.38782355,0.00016787,2]
[360041365,1746510646656,-1393.38213609,0.00017786,2]
[360041366,1746510646665,-3297.03958775,0.00017786,2]
[360041367,1746510646674,-1729.11674165,0.00017786,2]
[360041370,1746511022794,-239.81090291,0.00016778,2]
[360041371,1746511026629,-181.32337286,0.00016778,2]
[360041372,1746511030536,-4000.0,0.00016778,2]
[360041373,1746511033398,-197.81853343,0.00016778,2]
[360041384,1746511453390,-156.07236223,0.000176,2]
[360041385,1746511453419,-112.41161218,0.00017619,2]
[360041386,1746511458767,-43.66075004,0.00017619,2]
[360041387,1746511458790,-157.54336926,0.00017662,2]
[360041390,1746511565656,-200.17512853,0.0001707,2]
[360041394,1746511666619,-672.21330534,0.0001675,2]
[360041395,1746511670580,-265.00542295,0.0001675,2]
[360041396,1746511674413,-200.0,0.0001675,2]
[360041397,1746511681054,-23762.78127171,0.0001675,2]
[360041398,1746511681880,-152.44023618,0.0001707,2]
[360041400,1746511685598,-97.55976382,0.0001707,2]
[360041401,1746511777769,-221.80329508,0.0001707,2]
[360041402,1746511780496,-176.32727557,0.0001707,2]
[360041403,1746511784333,-475.42461043,0.0001707,2]
[360041404,1746511791544,-189.7115144,0.0001707,2]
[360041406,1746511799213,-64.81906941,0.0001707,2]
[360041407,1746511799235,-250.0,0.0001707,2]
[360041455,1746511831993,-1459.64913961,0.00017648,2]
[360041456,1746511832003,-706.59567983,0.00017648,2]
[360041458,1746511832012,-151.0,0.0001774,2]
[360041460,1746511832022,-249.8143988,0.0001774,2]
[360041462,1746511832031,-161.87838719,0.0001774,2]
[360041464,1746511832041,-300.0,0.00017746,2]
[360041466,1746511832050,-300.0,0.00017747,2]
[360041467,1746511832059,-300.0,0.00017747,2]
[360041469,1746511832069,-255.0,0.00017747,2]
[360041471,1746511832078,-1200.0,0.00017747,2]
[360041473,1746511832088,-50000.0,0.00017748,2]
[360041474,1746511832098,-500.0,0.00017748,2]
[360041475,1746511832107,-500.0,0.00017748,2]
[360041476,1746511832116,-1356.44659969,0.00017748,2]
[360041477,1746511832126,-500.0,0.00017748,2]
[360041478,1746511832136,-500.0,0.00017748,2]
[360041479,1746511832146,-1356.44659969,0.00017748,2]
[360041480,1746511832155,-520.72978052,0.00017748,2]
[360041481,1746511832165,-500.0,0.00017748,2]
[360041482,1746511832175,-1356.44659969,0.00017748,2]
[360041483,1746511832185,-500.0,0.00017748,2]
[360041484,1746511832195,-1356.44659969,0.00017748,2]
[360041485,1746511832205,-249.99999999,0.00017748,2]
[360041486,1746511832215,-1356.44659969,0.00017748,2]
[360041487,1746511832225,-1356.44659969,0.00017748,2]
[360041488,1746511832234,-1356.44659969,0.00017748,2]
[360041489,1746511832244,-1356.44659969,0.00017748,2]
[360041490,1746511832253,-1356.44659969,0.00017748,2]
[360041491,1746511832263,-1356.44659969,0.00017748,2]
[360041492,1746511832272,-1356.44659969,0.00017748,2]
[360041493,1746511832282,-1356.44659969,0.00017748,2]
[360041494,1746511832291,-1356.44659969,0.00017748,2]
[360041495,1746511832300,-1356.44659969,0.00017748,2]
[360041496,1746511832310,-1356.44659969,0.00017748,2]
[360041497,1746511832320,-1356.44659969,0.00017748,2]
[360041498,1746511832331,-1356.44659969,0.00017748,2]
[360041499,1746511832341,-1356.44659969,0.00017748,2]
[360041500,1746511832351,-1356.44659969,0.00017748,2]
[360041501,1746511832361,-1356.44659969,0.00017748,2]
[360041502,1746511832371,-1356.44659969,0.00017748,2]
[360041503,1746511832380,-1356.44659969,0.00017748,2]
[360041504,1746511832390,-1356.44659969,0.00017748,2]
[360041505,1746511832399,-1356.44659969,0.00017748,2]
[360041506,1746511832409,-1356.44659969,0.00017748,2]
[360041507,1746511832419,-1356.44659969,0.00017748,2]
[360041508,1746511832430,-1356.44659969,0.00017748,2]
[360041509,1746511832439,-1356.44659969,0.00017748,2]
[360041510,1746511832449,-1356.44659969,0.00017748,2]
[360041511,1746511832459,-1356.44659969,0.00017748,2]
[360041512,1746511832468,-1356.44659969,0.00017748,2]
[360041513,1746511832477,-407.29780515,0.00017748,2]
[360041514,1746511832488,-1837.83864495,0.00017748,2]
[360041515,1746511832497,-1837.83864495,0.00017748,2]
[360041516,1746511832507,-1837.83864495,0.00017748,2]
[360041517,1746511832516,-1837.83864495,0.00017748,2]
[360041518,1746511832525,-1837.83864495,0.00017748,2]
[360041519,1746511832535,-1837.83864495,0.00017748,2]
[360041520,1746511832544,-1837.83864495,0.00017748,2]
[360041521,1746511832554,-1837.83864495,0.00017748,2]
[360041522,1746511832563,-1837.83864495,0.00017748,2]
[360041523,1746511832573,-1837.83864495,0.00017748,2]
[360041524,1746511832582,-1837.83864495,0.00017748,2]
[360041525,1746511832592,-1837.83864495,0.00017748,2]
[360041526,1746511832601,-1837.83864495,0.00017748,2]
[360041527,1746511832610,-1837.83864495,0.00017748,2]
[360041528,1746511832619,-1837.83864495,0.00017748,2]